[Event "Late-Titled-Tuesday-Blitz-December-26-2023"]
[Site "Chess.com"]
[Date "2023.12.26"]
[Round "1"]
[White "RebecaJimnz"]
[Black "DanylaBagrov"]
[Result "0-1"]
[WhiteElo "2248"]
[BlackElo "2573"]
[TimeControl "180+1"]
[EndTime "14:08:26 PST"]
[Termination "DanylaBagrov won on time"]

1. e4 {[%clk 0:02:59.4]} 1... d6 {[%clk 0:02:57.3]} 2. d4 {[%clk 0:02:59.2]}
2... Nf6 {[%clk 0:02:52.8]} 3. Nc3 {[%clk 0:02:59.7]} 3... e5 {[%clk 0:02:53.4]}
4. dxe5 {[%clk 0:02:59.3]} 4... dxe5 {[%clk 0:02:54.3]} 5. Qxd8+ {[%clk
0:02:59.3]} 5... Kxd8 {[%clk 0:02:55.2]} 6. Bc4 {[%clk 0:02:59.4]} 6... Ke8
{[%clk 0:02:53.5]} 7. Nf3 {[%clk 0:02:54.6]} 7... Bd6 {[%clk 0:02:53.6]} 8. O-O
{[%clk 0:02:47]} 8... Ke7 {[%clk 0:02:50.6]} 9. Bg5 {[%clk 0:02:37.8]} 9... Be6
{[%clk 0:02:44.1]} 10. Nd5+ {[%clk 0:02:33.7]} 10... Bxd5 {[%clk 0:02:42.9]} 11.
exd5 {[%clk 0:02:33.4]} 11... Nd7 {[%clk 0:02:39.6]} 12. Rfe1 {[%clk 0:02:31.8]}
12... Rae8 {[%clk 0:02:18.1]} 13. Bb3 {[%clk 0:02:31.1]} 13... Kd8 {[%clk
0:02:06.6]} 14. c4 {[%clk 0:02:31.1]} 14... h6 {[%clk 0:01:59.3]} 15. Be3 {[%clk
0:02:27.3]} 15... Ng4 {[%clk 0:01:32.6]} 16. Bd2 {[%clk 0:02:26.2]} 16... f5
{[%clk 0:01:27.7]} 17. Bc2 {[%clk 0:02:23.8]} 17... Rhf8 {[%clk 0:01:26.4]} 18.
h3 {[%clk 0:02:22.3]} 18... e4 {[%clk 0:01:22.3]} 19. hxg4 {[%clk 0:02:13.8]}
19... exf3 {[%clk 0:01:22.4]} 20. Bxf5 {[%clk 0:02:11]} 20... Ne5 {[%clk
0:01:16.8]} 21. b3 {[%clk 0:02:02.4]} 21... g6 {[%clk 0:00:44.7]} 22. Be4 {[%clk
0:01:31.5]} 22... fxg2 {[%clk 0:00:39.1]} 23. Kxg2 {[%clk 0:01:29.8]} 23... Nxg4
{[%clk 0:00:33.6]} 24. f3 {[%clk 0:01:28.1]} 24... Bf4 {[%clk 0:00:17.7]} 25.
Bxf4 {[%clk 0:01:09]} 25... Rxf4 {[%clk 0:00:18.6]} 26. Bxg6 {[%clk 0:00:59.6]}
26... Rg8 {[%clk 0:00:16.6]} 27. fxg4 {[%clk 0:00:54.1]} 27... Rxg4+ {[%clk
0:00:16.5]} 28. Kf3 {[%clk 0:00:52.7]} 28... R8xg6 {[%clk 0:00:15.8]} 29. Re4
{[%clk 0:00:42.3]} 29... Rg3+ {[%clk 0:00:15.7]} 30. Ke2 {[%clk 0:00:40]} 30...
Rg2+ {[%clk 0:00:15.9]} 31. Kd3 {[%clk 0:00:40.3]} 31... R6g3+ {[%clk
0:00:16.3]} 32. Re3 {[%clk 0:00:37.8]} 32... Rg7 {[%clk 0:00:12.1]} 33. Rh1
{[%clk 0:00:32.5]} 33... Rh7 {[%clk 0:00:11.9]} 34. Re6 {[%clk 0:00:30.6]} 34...
h5 {[%clk 0:00:11.3]} 35. a4 {[%clk 0:00:23.6]} 35... h4 {[%clk 0:00:09.7]} 36.
Rh3 {[%clk 0:00:17.8]} 36... Rg3+ {[%clk 0:00:07.5]} 37. Re3 {[%clk 0:00:18.4]}
37... Rg1 {[%clk 0:00:07.3]} 38. Re4 {[%clk 0:00:18]} 38... Rg3+ {[%clk
0:00:06.2]} 39. Re3 {[%clk 0:00:18.3]} 39... Rxe3+ {[%clk 0:00:06.1]} 40. Kxe3
{[%clk 0:00:18.3]} 40... Kd7 {[%clk 0:00:06.8]} 41. Kf4 {[%clk 0:00:19]} 41...
Kd6 {[%clk 0:00:07.5]} 42. b4 {[%clk 0:00:18.5]} 42... a5 {[%clk 0:00:07.5]} 43.
bxa5 {[%clk 0:00:13.2]} 43... Kc5 {[%clk 0:00:08.4]} 44. Ke5 {[%clk 0:00:04.8]}
44... Kxc4 {[%clk 0:00:08.6]} 45. d6 {[%clk 0:00:03.9]} 45... cxd6+ {[%clk
0:00:07.1]} 46. Kxd6 {[%clk 0:00:04.8]} 46... Kb4 {[%clk 0:00:07.5]} 47. a6
{[%clk 0:00:03.8]} 47... bxa6 {[%clk 0:00:08]} 48. Ke5 {[%clk 0:00:02.8]} 48...
Kxa4 {[%clk 0:00:07.9]} 49. Kf4 {[%clk 0:00:03.2]} 49... Kb4 {[%clk 0:00:07.9]}
50. Rh1 {[%clk 0:00:03.3]} 50... h3 {[%clk 0:00:07]} 51. Kg3 {[%clk 0:00:02.8]}
51... h2 {[%clk 0:00:06.6]} 52. Kg2 {[%clk 0:00:02.8]} 52... a5 {[%clk
0:00:03.2]} 53. Rb1+ {[%clk 0:00:02.9]} 53... Kc3 {[%clk 0:00:03.9]} 54. Kh1
{[%clk 0:00:03.6]} 54... Rh5 {[%clk 0:00:04.2]} 55. Ra1 {[%clk 0:00:04]} 55...
Kb2 {[%clk 0:00:04.4]} 56. Ra4 {[%clk 0:00:03.8]} 56... Kb3 {[%clk 0:00:05]} 57.
Ra1 {[%clk 0:00:03.6]} 57... a4 {[%clk 0:00:05.7]} 58. Ra3+ {[%clk 0:00:02.9]}
58... Kxa3 {[%clk 0:00:05.5]} 59. Kg2 {[%clk 0:00:02.1]} 59... h1=Q+ {[%clk
0:00:06.4]} 0-1

[Event "Late-Titled-Tuesday-Blitz-December-26-2023"]
[Site "Chess.com"]
[Date "2023.12.26"]
[Round "1"]
[White "Aariow"]
[Black "German_Bazeev"]
[Result "1/2-1/2"]
[WhiteElo "2476"]
[BlackElo "2853"]
[TimeControl "180+1"]
[EndTime "14:08:30 PST"]
[Termination "Game drawn - insufficient material"]

1. d4 {[%clk 0:03:00.9]} 1... Nf6 {[%clk 0:02:59.5]} 2. c4 {[%clk 0:03:01.2]}
2... e6 {[%clk 0:02:59.5]} 3. Nc3 {[%clk 0:03:01.8]} 3... Bb4 {[%clk 0:02:59.3]}
4. Qc2 {[%clk 0:03:02.6]} 4... d5 {[%clk 0:02:56.4]} 5. cxd5 {[%clk 0:03:02.2]}
5... Qxd5 {[%clk 0:02:52.5]} 6. Nf3 {[%clk 0:03:01.6]} 6... Qf5 {[%clk
0:02:49.9]} 7. Qb3 {[%clk 0:03:02.2]} 7... Nc6 {[%clk 0:02:39.8]} 8. g3 {[%clk
0:03:02.4]} 8... Qd5 {[%clk 0:02:20.1]} 9. Qxd5 {[%clk 0:02:50.8]} 9... Nxd5
{[%clk 0:01:53.9]} 10. Bd2 {[%clk 0:02:50.7]} 10... Bd7 {[%clk 0:01:51]} 11. Bg2
{[%clk 0:02:45.5]} 11... f6 {[%clk 0:01:49.7]} 12. a3 {[%clk 0:02:41.5]} 12...
Bxc3 {[%clk 0:01:47.8]} 13. bxc3 {[%clk 0:02:41.2]} 13... Nb6 {[%clk 0:01:48.5]}
14. Bf4 {[%clk 0:02:38.6]} 14... O-O-O {[%clk 0:01:48.1]} 15. Nd2 {[%clk
0:02:36.9]} 15... Na5 {[%clk 0:01:46.5]} 16. e4 {[%clk 0:02:32]} 16... Bb5
{[%clk 0:01:39]} 17. Rb1 {[%clk 0:02:29]} 17... Bd3 {[%clk 0:01:36.7]} 18. Rb4
{[%clk 0:02:28.7]} 18... e5 {[%clk 0:01:18.9]} 19. Be3 {[%clk 0:02:25]} 19...
Nc6 {[%clk 0:01:18.9]} 20. Rb3 {[%clk 0:02:22.3]} 20... Nc4 {[%clk 0:01:06.3]}
21. d5 {[%clk 0:02:15.5]} 21... Nxe3 {[%clk 0:00:57.1]} 22. fxe3 {[%clk
0:02:13.8]} 22... Na5 {[%clk 0:00:57.8]} 23. Rb4 {[%clk 0:02:12.3]} 23... b6
{[%clk 0:00:36.2]} 24. Bf1 {[%clk 0:01:33.7]} 24... Bxf1 {[%clk 0:00:36.1]} 25.
Rxf1 {[%clk 0:01:33.9]} 25... c6 {[%clk 0:00:35]} 26. c4 {[%clk 0:01:32.6]}
26... Kc7 {[%clk 0:00:34.9]} 27. g4 {[%clk 0:01:17.7]} 27... Rhf8 {[%clk
0:00:33.9]} 28. h4 {[%clk 0:01:15.5]} 28... Nb7 {[%clk 0:00:34.5]} 29. Ke2
{[%clk 0:01:05.3]} 29... Nc5 {[%clk 0:00:30.8]} 30. Rbb1 {[%clk 0:01:04.2]}
30... Rd7 {[%clk 0:00:28.6]} 31. g5 {[%clk 0:00:50.1]} 31... Rdf7 {[%clk
0:00:28.7]} 32. Rf5 {[%clk 0:00:48.4]} 32... g6 {[%clk 0:00:27.9]} 33. Rxf6
{[%clk 0:00:40.8]} 33... Rxf6 {[%clk 0:00:28.5]} 34. gxf6 {[%clk 0:00:41.7]}
34... Rxf6 {[%clk 0:00:29.4]} 35. Rg1 {[%clk 0:00:39.9]} 35... Kd6 {[%clk
0:00:26.8]} 36. Rg5 {[%clk 0:00:29.8]} 36... a5 {[%clk 0:00:24.8]} 37. h5 {[%clk
0:00:26.5]} 37... b5 {[%clk 0:00:25.3]} 38. dxc6 {[%clk 0:00:18.3]} 38... b4
{[%clk 0:00:25.6]} 39. axb4 {[%clk 0:00:18.3]} 39... axb4 {[%clk 0:00:26.5]} 40.
c7 {[%clk 0:00:19]} 40... Kxc7 {[%clk 0:00:23]} 41. Rxe5 {[%clk 0:00:19]} 41...
Kc6 {[%clk 0:00:23.6]} 42. hxg6 {[%clk 0:00:16.8]} 42... Rxg6 {[%clk 0:00:23.5]}
43. Rd5 {[%clk 0:00:16.3]} 43... b3 {[%clk 0:00:22.9]} 44. e5 {[%clk 0:00:12.4]}
44... b2 {[%clk 0:00:22.5]} 45. Kd1 {[%clk 0:00:12.5]} 45... Rg2 {[%clk
0:00:20.6]} 46. Kc2 {[%clk 0:00:12]} 46... Ne4 {[%clk 0:00:21.2]} 47. Kxb2
{[%clk 0:00:06.2]} 47... Rxd2+ {[%clk 0:00:21.2]} 48. Rxd2 {[%clk 0:00:03.8]}
48... Nxd2 {[%clk 0:00:22.1]} 49. Kc3 {[%clk 0:00:04.6]} 49... Nf3 {[%clk
0:00:22.6]} 50. e6 {[%clk 0:00:03.5]} 50... Kd6 {[%clk 0:00:23.3]} 51. Kd3
{[%clk 0:00:04.4]} 51... Ne5+ {[%clk 0:00:21.7]} 52. Ke4 {[%clk 0:00:05.3]}
52... Kxe6 {[%clk 0:00:22.2]} 53. c5 {[%clk 0:00:05.2]} 53... Nf7 {[%clk
0:00:18.6]} 54. Kf4 {[%clk 0:00:03.5]} 54... Kd5 {[%clk 0:00:18.2]} 55. Kf5
{[%clk 0:00:03.6]} 55... Kxc5 {[%clk 0:00:18.3]} 56. Kf6 {[%clk 0:00:04.2]}
56... h6 {[%clk 0:00:15.9]} 57. Kg6 {[%clk 0:00:03.9]} 57... Kd6 {[%clk
0:00:12.3]} 58. Kxf7 {[%clk 0:00:03.4]} 58... h5 {[%clk 0:00:11.7]} 59. Kf6
{[%clk 0:00:02.8]} 59... h4 {[%clk 0:00:12.1]} 60. e4 {[%clk 0:00:03.5]} 60...
h3 {[%clk 0:00:12.6]} 61. e5+ {[%clk 0:00:04.2]} 61... Kd5 {[%clk 0:00:07.2]}
62. e6 {[%clk 0:00:04.4]} 62... h2 {[%clk 0:00:07.3]} 63. e7 {[%clk 0:00:05.1]}
63... h1=Q {[%clk 0:00:08]} 64. e8=Q {[%clk 0:00:05.8]} 64... Qh6+ {[%clk
0:00:06.2]} 65. Qg6 {[%clk 0:00:04.1]} 65... Qxg6+ {[%clk 0:00:05.5]} 66. Kxg6
{[%clk 0:00:05]} 1/2-1/2

[Event "Late-Titled-Tuesday-Blitz-December-26-2023"]
[Site "Chess.com"]
[Date "2023.12.26"]
[Round "1"]
[White "Rakitic2010"]
[Black "MITerryble"]
[Result "1/2-1/2"]
[WhiteElo "2515"]
[BlackElo "3028"]
[TimeControl "180+1"]
[EndTime "14:08:33 PST"]
[Termination "Game drawn - timeout vs insufficient material"]

1. e4 {[%clk 0:03:00.9]} 1... e6 {[%clk 0:03:00.2]} 2. d4 {[%clk 0:03:00.9]}
2... d5 {[%clk 0:03:00.7]} 3. Nc3 {[%clk 0:03:00.8]} 3... Nf6 {[%clk 0:03:00.8]}
4. e5 {[%clk 0:03:00.7]} 4... Nfd7 {[%clk 0:03:01]} 5. f4 {[%clk 0:03:01.6]}
5... c5 {[%clk 0:03:01.4]} 6. Nf3 {[%clk 0:03:02.5]} 6... Nc6 {[%clk 0:03:01.9]}
7. Be3 {[%clk 0:03:03.2]} 7... Be7 {[%clk 0:03:02.5]} 8. Qd2 {[%clk 0:03:02.7]}
8... O-O {[%clk 0:03:03]} 9. dxc5 {[%clk 0:02:59.8]} 9... Qa5 {[%clk 0:03:02.7]}
10. a3 {[%clk 0:02:55.8]} 10... Nxc5 {[%clk 0:03:02.3]} 11. O-O-O {[%clk
0:02:48.2]} 11... a6 {[%clk 0:02:58.5]} 12. f5 {[%clk 0:02:46.7]} 12... Ne4
{[%clk 0:02:50.7]} 13. Nxe4 {[%clk 0:02:39.4]} 13... dxe4 {[%clk 0:02:51.6]} 14.
Qxa5 {[%clk 0:02:10.5]} 14... Nxa5 {[%clk 0:02:52.5]} 15. f6 {[%clk 0:02:03.6]}
15... gxf6 {[%clk 0:02:49.7]} 16. exf6 {[%clk 0:02:03.2]} 16... Bxf6 {[%clk
0:02:49.9]} 17. Nd2 {[%clk 0:02:03.2]} 17... b5 {[%clk 0:02:17.9]} 18. Nxe4
{[%clk 0:01:56.6]} 18... Be7 {[%clk 0:02:10.6]} 19. Be2 {[%clk 0:01:46.8]} 19...
Bb7 {[%clk 0:02:09.9]} 20. Bf3 {[%clk 0:01:47.2]} 20... Nc4 {[%clk 0:01:57.9]}
21. Bd4 {[%clk 0:01:37.3]} 21... Bxe4 {[%clk 0:01:20.3]} 22. Bxe4 {[%clk
0:01:35.6]} 22... Rad8 {[%clk 0:01:21.2]} 23. Bc3 {[%clk 0:01:19.6]} 23... Rc8
{[%clk 0:01:10]} 24. Rd3 {[%clk 0:01:16]} 24... f5 {[%clk 0:01:07.6]} 25. Rg3+
{[%clk 0:01:06.6]} 25... Kf7 {[%clk 0:01:06.5]} 26. Rg7+ {[%clk 0:01:01.8]}
26... Ke8 {[%clk 0:01:07]} 27. Bb7 {[%clk 0:01:00.3]} 27... Rc7 {[%clk
0:00:49.4]} 28. Bxa6 {[%clk 0:00:56.5]} 28... Nxa3 {[%clk 0:00:42.2]} 29. Rxe7+
{[%clk 0:00:47]} 29... Kxe7 {[%clk 0:00:39.4]} 30. Bb4+ {[%clk 0:00:44.2]} 30...
Kf7 {[%clk 0:00:39.4]} 31. Bxf8 {[%clk 0:00:35.5]} 31... Rxc2+ {[%clk
0:00:33.9]} 32. Kd1 {[%clk 0:00:33.2]} 32... Kxf8 {[%clk 0:00:25]} 33. bxa3
{[%clk 0:00:32.3]} 33... Ra2 {[%clk 0:00:09]} 34. Re1 {[%clk 0:00:31.1]} 34...
b4 {[%clk 0:00:09]} 35. Bc4 {[%clk 0:00:26]} 35... Rxg2 {[%clk 0:00:09]} 36.
axb4 {[%clk 0:00:25.1]} 36... Rg4 {[%clk 0:00:07.1]} 37. Bxe6 {[%clk 0:00:20.2]}
37... Rxb4 {[%clk 0:00:08]} 38. Bxf5 {[%clk 0:00:20.8]} 38... Rb2 {[%clk
0:00:05.4]} 39. h3 {[%clk 0:00:17.4]} 39... Kg7 {[%clk 0:00:03.8]} 40. Bc2
{[%clk 0:00:16.2]} 40... h5 {[%clk 0:00:03.2]} 41. Kd2 {[%clk 0:00:15.8]} 41...
Rb4 {[%clk 0:00:02.7]} 42. Ke3 {[%clk 0:00:15]} 42... Rh4 {[%clk 0:00:02.4]} 43.
Rh1 {[%clk 0:00:13.5]} 43... Kf6 {[%clk 0:00:02.6]} 44. Kf3 {[%clk 0:00:13.8]}
44... Rc4 {[%clk 0:00:03.1]} 45. Bd3 {[%clk 0:00:11.5]} 45... Rc3 {[%clk
0:00:03.2]} 46. Ke3 {[%clk 0:00:12]} 46... Ra3 {[%clk 0:00:01.8]} 47. h4 {[%clk
0:00:10.1]} 47... Ra4 {[%clk 0:00:02.3]} 48. Be4 {[%clk 0:00:10.2]} 48... Ke5
{[%clk 0:00:02.2]} 49. Bf3 {[%clk 0:00:09.2]} 49... Ra3+ {[%clk 0:00:02.8]} 50.
Kf2 {[%clk 0:00:09.2]} 50... Kf4 {[%clk 0:00:03.7]} 51. Bxh5 {[%clk 0:00:08.1]}
51... Ra2+ {[%clk 0:00:02.7]} 52. Be2 {[%clk 0:00:08.7]} 52... Ra6 {[%clk
0:00:02.8]} 53. h5 {[%clk 0:00:09]} 53... Rh6 {[%clk 0:00:02.9]} 54. Rg1 {[%clk
0:00:08.9]} 54... Rf6 {[%clk 0:00:02.4]} 55. Rf1 {[%clk 0:00:07.9]} 55... Ke4+
{[%clk 0:00:01.3]} 56. Kg2 {[%clk 0:00:02.2]} 56... Rxf1 {[%clk 0:00:02.2]} 57.
Bxf1 {[%clk 0:00:01.8]} 57... Kf5 {[%clk 0:00:02.5]} 58. Bd3+ {[%clk 0:00:01.9]}
58... Kg5 {[%clk 0:00:02.5]} 59. Be2 {[%clk 0:00:02.8]} 59... Kh6 {[%clk
0:00:03.3]} 60. Kg3 {[%clk 0:00:03.3]} 60... Kg7 {[%clk 0:00:04.2]} 61. Kg4
{[%clk 0:00:03.8]} 61... Kh8 {[%clk 0:00:05.1]} 62. Kg5 {[%clk 0:00:04.5]} 62...
Kh7 {[%clk 0:00:05.4]} 63. Kh4 {[%clk 0:00:04.6]} 63... Kh8 {[%clk 0:00:06.3]}
64. Kg5 {[%clk 0:00:05.5]} 64... Kg7 {[%clk 0:00:06.7]} 65. Bd3 {[%clk
0:00:05.8]} 65... Kh8 {[%clk 0:00:07.6]} 66. Be4 {[%clk 0:00:06]} 66... Kg8
{[%clk 0:00:08.4]} 67. Bf5 {[%clk 0:00:06.2]} 67... Kh8 {[%clk 0:00:09.3]}
1/2-1/2

[Event "Late-Titled-Tuesday-Blitz-December-26-2023"]
[Site "Chess.com"]
[Date "2023.12.26"]
[Round "1"]
[White "SnekkerAndersen"]
[Black "GMthekingindian"]
[Result "0-1"]
[WhiteElo "2572"]
[BlackElo "2304"]
[TimeControl "180+1"]
[EndTime "14:08:37 PST"]
[Termination "GMthekingindian won by checkmate"]

1. e4 {[%clk 0:03:00.9]} 1... c5 {[%clk 0:02:59.7]} 2. Nf3 {[%clk 0:03:00.8]}
2... d6 {[%clk 0:03:00.2]} 3. d4 {[%clk 0:03:00.9]} 3... cxd4 {[%clk 0:03:01.1]}
4. Nxd4 {[%clk 0:03:01.5]} 4... Nf6 {[%clk 0:03:01.8]} 5. f3 {[%clk 0:03:01.8]}
5... e5 {[%clk 0:03:00.1]} 6. Nb3 {[%clk 0:03:00.5]} 6... d5 {[%clk 0:03:00.1]}
7. Bg5 {[%clk 0:02:56.7]} 7... Be6 {[%clk 0:02:58.3]} 8. Bxf6 {[%clk 0:02:49.1]}
8... gxf6 {[%clk 0:02:59.2]} 9. exd5 {[%clk 0:02:49.4]} 9... Qxd5 {[%clk
0:02:59.2]} 10. Qxd5 {[%clk 0:02:49.6]} 10... Bxd5 {[%clk 0:02:58.4]} 11. Nc3
{[%clk 0:02:50.3]} 11... Bb4 {[%clk 0:02:56.9]} 12. O-O-O {[%clk 0:02:49.5]}
12... Be6 {[%clk 0:02:52.4]} 13. Nd5 {[%clk 0:02:48.1]} 13... Bxd5 {[%clk
0:02:48.8]} 14. Rxd5 {[%clk 0:02:47.8]} 14... Nc6 {[%clk 0:02:49.1]} 15. Bb5
{[%clk 0:02:45.5]} 15... Rd8 {[%clk 0:02:43.5]} 16. Rxd8+ {[%clk 0:02:42]} 16...
Kxd8 {[%clk 0:02:43.6]} 17. c3 {[%clk 0:02:42.7]} 17... Be7 {[%clk 0:02:41.1]}
18. Bxc6 {[%clk 0:02:41.7]} 18... bxc6 {[%clk 0:02:40.2]} 19. Kc2 {[%clk
0:02:37]} 19... Rg8 {[%clk 0:02:35.6]} 20. g4 {[%clk 0:02:36.9]} 20... h5 {[%clk
0:02:30.9]} 21. h3 {[%clk 0:02:31.9]} 21... Kc7 {[%clk 0:02:26.2]} 22. Nd2
{[%clk 0:02:29.8]} 22... f5 {[%clk 0:02:09]} 23. gxf5 {[%clk 0:02:06.2]} 23...
Rg5 {[%clk 0:02:00.1]} 24. Kd3 {[%clk 0:02:03.3]} 24... Rxf5 {[%clk 0:01:50.7]}
25. Rg1 {[%clk 0:01:43.5]} 25... Bg5 {[%clk 0:01:23.9]} 26. Ke4 {[%clk
0:01:42.8]} 26... Rf4+ {[%clk 0:01:23.8]} 27. Kxe5 {[%clk 0:01:40.8]} 27... f6+
{[%clk 0:01:21.9]} 28. Ke6 {[%clk 0:01:39.4]} 28... Rh4 {[%clk 0:01:15.9]} 29.
Ne4 {[%clk 0:01:23.1]} 29... Rxh3 {[%clk 0:01:15.8]} 30. f4 {[%clk 0:00:44]}
30... Bxf4 {[%clk 0:01:01.6]} 31. Nxf6 {[%clk 0:00:43.9]} 31... h4 {[%clk
0:00:50.3]} 32. Rg7+ {[%clk 0:00:35.3]} 32... Kb6 {[%clk 0:00:48.3]} 33. c4
{[%clk 0:00:26.8]} 33... Re3+ {[%clk 0:00:39.8]} 34. Kf5 {[%clk 0:00:26.4]}
34... Bg3 {[%clk 0:00:39.5]} 35. Rh7 {[%clk 0:00:24.2]} 35... Kc5 {[%clk
0:00:19.5]} 36. b3 {[%clk 0:00:24.5]} 36... a5 {[%clk 0:00:18]} 37. Kg4 {[%clk
0:00:19.9]} 37... Kb4 {[%clk 0:00:18]} 38. Rb7+ {[%clk 0:00:18.2]} 38... Kc3
{[%clk 0:00:17.4]} 39. Ra7 {[%clk 0:00:17.9]} 39... Kb4 {[%clk 0:00:17]} 40. Nd7
{[%clk 0:00:16.3]} 40... Be1 {[%clk 0:00:13.2]} 41. Rb7+ {[%clk 0:00:13.4]}
41... Ka3 {[%clk 0:00:13.6]} 42. Nc5 {[%clk 0:00:11.7]} 42... Kxa2 {[%clk
0:00:12.7]} 43. Rd7 {[%clk 0:00:11.3]} 43... Bb4 {[%clk 0:00:10.8]} 44. Na6
{[%clk 0:00:08]} 44... Rxb3 {[%clk 0:00:10.6]} 45. Rc7 {[%clk 0:00:08.2]} 45...
c5 {[%clk 0:00:10.4]} 46. Nxc5 {[%clk 0:00:05.2]} 46... Bxc5 {[%clk 0:00:10.6]}
47. Rxc5 {[%clk 0:00:05.4]} 47... a4 {[%clk 0:00:11.2]} 48. Kxh4 {[%clk
0:00:05.6]} 48... a3 {[%clk 0:00:11.3]} 49. Rb5 {[%clk 0:00:04.8]} 49... Rb2
{[%clk 0:00:03.9]} 50. Kg3 {[%clk 0:00:03.5]} 50... Ka1 {[%clk 0:00:04]} 51. Ra5
{[%clk 0:00:03.1]} 51... a2 {[%clk 0:00:03.7]} 52. Rf5 {[%clk 0:00:02.3]} 52...
Rb3+ {[%clk 0:00:02.3]} 53. Kg2 {[%clk 0:00:02.1]} 53... Kb2 {[%clk 0:00:02.7]}
54. Rf2+ {[%clk 0:00:01.6]} 54... Ka3 {[%clk 0:00:03.1]} 55. Rf1 {[%clk
0:00:01.2]} 55... Rb2+ {[%clk 0:00:04]} 56. Kg3 {[%clk 0:00:01.1]} 56... Rb1
{[%clk 0:00:04.9]} 57. Rf3+ {[%clk 0:00:01.4]} 57... Kb4 {[%clk 0:00:05.4]} 58.
c5 {[%clk 0:00:01.1]} 58... a1=Q {[%clk 0:00:05.4]} 59. Rf4+ {[%clk 0:00:01.6]}
59... Kb5 {[%clk 0:00:06]} 60. c6 {[%clk 0:00:01.6]} 60... Qg7+ {[%clk
0:00:06.6]} 61. Rg4 {[%clk 0:00:02]} 61... Rg1+ {[%clk 0:00:06.7]} 62. Kh3
{[%clk 0:00:02.1]} 62... Qxg4+ {[%clk 0:00:07.6]} 63. Kh2 {[%clk 0:00:02.9]}
63... Qg3# {[%clk 0:00:08]} 0-1

[Event "Late-Titled-Tuesday-Blitz-December-26-2023"]
[Site "Chess.com"]
[Date "2023.12.26"]
[Round "1"]
[White "jactorres"]
[Black "cthake"]
[Result "1-0"]
[WhiteElo "2511"]
[BlackElo "1898"]
[TimeControl "180+1"]
[EndTime "14:08:37 PST"]
[Termination "jactorres won by resignation"]

1. e4 {[%clk 0:03:00.7]} 1... c5 {[%clk 0:02:59.7]} 2. Nf3 {[%clk 0:02:57.9]}
2... Nc6 {[%clk 0:02:54.6]} 3. d4 {[%clk 0:02:55.3]} 3... cxd4 {[%clk
0:02:54.8]} 4. Nxd4 {[%clk 0:02:43.3]} 4... Nf6 {[%clk 0:02:54.6]} 5. Nc3 {[%clk
0:02:38]} 5... e5 {[%clk 0:02:54.5]} 6. Ndb5 {[%clk 0:02:37.7]} 6... d6 {[%clk
0:02:54.8]} 7. Nd5 {[%clk 0:02:37.3]} 7... Nxd5 {[%clk 0:02:54.3]} 8. exd5
{[%clk 0:02:38.2]} 8... Nb8 {[%clk 0:02:54.1]} 9. c4 {[%clk 0:02:38]} 9... a6
{[%clk 0:02:53.8]} 10. Nc3 {[%clk 0:02:37.7]} 10... Be7 {[%clk 0:02:49.6]} 11.
Be2 {[%clk 0:02:36.5]} 11... O-O {[%clk 0:02:49.4]} 12. O-O {[%clk 0:02:36.1]}
12... f5 {[%clk 0:02:32.7]} 13. Kh1 {[%clk 0:02:23.4]} 13... f4 {[%clk
0:02:32.6]} 14. Bg4 {[%clk 0:02:05.4]} 14... Nd7 {[%clk 0:02:27.4]} 15. Ne4
{[%clk 0:02:01.9]} 15... Nf6 {[%clk 0:02:26]} 16. Nxf6+ {[%clk 0:01:59.5]} 16...
Bxf6 {[%clk 0:02:17.8]} 17. Re1 {[%clk 0:01:55.7]} 17... Qe8 {[%clk 0:02:12.3]}
18. Bd2 {[%clk 0:01:49.1]} 18... Qg6 {[%clk 0:02:10.3]} 19. Bxc8 {[%clk
0:01:44]} 19... Raxc8 {[%clk 0:02:09.4]} 20. Rc1 {[%clk 0:01:44.3]} 20... Bh4
{[%clk 0:02:05]} 21. Qf3 {[%clk 0:01:42.7]} 21... Rce8 {[%clk 0:01:54.4]} 22.
Re4 {[%clk 0:01:41.1]} 22... h5 {[%clk 0:01:50.7]} 23. Rce1 {[%clk 0:01:33.9]}
23... Bf6 {[%clk 0:01:44.7]} 24. Bc3 {[%clk 0:01:32.5]} 24... Qg4 {[%clk
0:01:40.8]} 25. Qd3 {[%clk 0:01:21.8]} 25... Bh4 {[%clk 0:01:33.3]} 26. h3
{[%clk 0:01:21]} 26... Qg6 {[%clk 0:01:28.2]} 27. Qf3 {[%clk 0:01:20.4]} 27...
Bf6 {[%clk 0:01:25.2]} 28. b4 {[%clk 0:01:19.6]} 28... Qh6 {[%clk 0:01:14.2]}
29. c5 {[%clk 0:01:14.1]} 29... dxc5 {[%clk 0:00:51.7]} 30. bxc5 {[%clk
0:01:13.4]} 30... Qg5 {[%clk 0:00:52.1]} 31. d6 {[%clk 0:01:08.3]} 31... Rc8
{[%clk 0:00:52.1]} 32. Bb4 {[%clk 0:01:00]} 32... a5 {[%clk 0:00:50.8]} 33. Ba3
{[%clk 0:00:59]} 33... Rf7 {[%clk 0:00:40.6]} 34. Rd1 {[%clk 0:00:57]} 34... Qf5
{[%clk 0:00:32.9]} 35. Rc4 {[%clk 0:00:55.4]} 35... Qe6 {[%clk 0:00:30.8]} 36.
Qd5 {[%clk 0:00:54.8]} 36... Qxd5 {[%clk 0:00:26.7]} 37. Rxd5 {[%clk 0:00:55.7]}
37... Rd7 {[%clk 0:00:20.4]} 38. Bb2 {[%clk 0:00:51.9]} 38... Re8 {[%clk
0:00:19.5]} 39. f3 {[%clk 0:00:48.8]} 39... g5 {[%clk 0:00:18.7]} 40. Re4 {[%clk
0:00:48.4]} 40... Kf7 {[%clk 0:00:16.5]} 41. Bxe5 {[%clk 0:00:46.8]} 41... Bxe5
{[%clk 0:00:16.3]} 42. Rdxe5 {[%clk 0:00:39]} 42... Rxe5 {[%clk 0:00:16.5]} 43.
Rxe5 {[%clk 0:00:39.9]} 43... Kf6 {[%clk 0:00:16.9]} 44. Rd5 {[%clk 0:00:36]}
44... Rd8 {[%clk 0:00:15.3]} 45. a4 {[%clk 0:00:33.6]} 45... Rd7 {[%clk
0:00:15.4]} 46. Kg1 {[%clk 0:00:33.1]} 46... Rd8 {[%clk 0:00:15.4]} 47. Kf2
{[%clk 0:00:33.2]} 47... Re8 {[%clk 0:00:12.2]} 48. d7 {[%clk 0:00:32.4]} 48...
Rd8 {[%clk 0:00:12.3]} 49. Ke2 {[%clk 0:00:28.7]} 49... Ke6 {[%clk 0:00:11.5]}
50. Rxg5 {[%clk 0:00:28.4]} 50... Rxd7 {[%clk 0:00:12]} 51. Rxh5 {[%clk
0:00:25.6]} 51... Kf6 {[%clk 0:00:10.4]} 52. Rh6+ {[%clk 0:00:25]} 52... Kg5
{[%clk 0:00:09.7]} 53. Rb6 {[%clk 0:00:24.7]} 53... Re7+ {[%clk 0:00:09.3]} 54.
Kf2 {[%clk 0:00:24.3]} 54... Kf5 {[%clk 0:00:08.6]} 55. Rb5 {[%clk 0:00:24.4]}
55... Rd7 {[%clk 0:00:05.1]} 56. Rxa5 {[%clk 0:00:23.3]} 56... Rd2+ {[%clk
0:00:05.7]} 57. Kg1 {[%clk 0:00:23.3]} 57... Ke6 {[%clk 0:00:04.7]} 58. Kh2
{[%clk 0:00:22.2]} 58... Kd5 {[%clk 0:00:04.4]} 59. Rb5 {[%clk 0:00:22.7]} 59...
Kc6 {[%clk 0:00:04.5]} 60. Rb6+ {[%clk 0:00:22.2]} 60... Kxc5 {[%clk 0:00:04.3]}
61. Rxb7 {[%clk 0:00:22.2]} 61... Ra2 {[%clk 0:00:05.2]} 62. Ra7 {[%clk
0:00:21.9]} 62... Kb6 {[%clk 0:00:04.9]} 63. Ra8 {[%clk 0:00:22.2]} 63... Kb7
{[%clk 0:00:05.3]} 64. Ra5 {[%clk 0:00:22.6]} 64... Kb6 {[%clk 0:00:05.5]} 65.
Rb5+ {[%clk 0:00:23.1]} 65... Kc6 {[%clk 0:00:05.7]} 66. Rb4 {[%clk 0:00:23.7]}
66... Kc5 {[%clk 0:00:05.6]} 67. Rxf4 {[%clk 0:00:22.3]} 67... Kd5 {[%clk
0:00:05.3]} 68. Re4 {[%clk 0:00:22.7]} 68... Kd6 {[%clk 0:00:05.1]} 69. h4
{[%clk 0:00:23]} 69... Kc7 {[%clk 0:00:05.3]} 70. h5 {[%clk 0:00:23.1]} 70...
Kd6 {[%clk 0:00:06.2]} 71. h6 {[%clk 0:00:23.1]} 1-0